{"text_format":"3","workbook":"xlsx","n_sheets":4,"sheets":["Зведення","Активи","Зобов язання","Категорії"],"not_rendered":{"defined_names":10},"read":"whole","date_system":"1900"}

{"sheet":"Зведення","index":0,"n_rows":12,"n_cols":4,"rows_kept":12}
[null,"Баланс"]
[null,null,{"$f":"\"ФР-\"&YEAR(TODAY())-1","v":"ФР-2016"},{"$f":"\"ФР-\"&YEAR(TODAY())","v":"ФР-2017"}]
[null,"Тип активу","Попередній рік","Поточний рік"]
[null,"Поточні активи",{"$f":"SUMIFS(Активи[Попередній рік],Активи[Тип активу],Приладна_дошка[[#This Row],[Тип активу]])+SUMIFS(Зобов_язання[Попередній рік],Зобов_язання[Тип зобов’язання],Приладна_дошка[[#This Row],[Тип активу]])","v":600},{"$f":"SUMIFS(Активи[Поточний рік],Активи[Тип активу],Приладна_дошка[[#This Row],[Тип активу]])+SUMIFS(Зобов_язання[Поточний рік],Зобов_язання[Тип зобов’язання],Приладна_дошка[[#This Row],[Тип активу]])","v":600}]
[null,"Основні активи",{"$f":"SUMIFS(Активи[Попередній рік],Активи[Тип активу],Приладна_дошка[[#This Row],[Тип активу]])+SUMIFS(Зобов_язання[Попередній рік],Зобов_язання[Тип зобов’язання],Приладна_дошка[[#This Row],[Тип активу]])","v":{"v":-100,"d":"-100 "}},{"$f":"SUMIFS(Активи[Поточний рік],Активи[Тип активу],Приладна_дошка[[#This Row],[Тип активу]])+SUMIFS(Зобов_язання[Поточний рік],Зобов_язання[Тип зобов’язання],Приладна_дошка[[#This Row],[Тип активу]])","v":{"v":-85,"d":"-85 "}}]
[null,"Інші активи",{"$f":"SUMIFS(Активи[Попередній рік],Активи[Тип активу],Приладна_дошка[[#This Row],[Тип активу]])+SUMIFS(Зобов_язання[Попередній рік],Зобов_язання[Тип зобов’язання],Приладна_дошка[[#This Row],[Тип активу]])","v":0},{"$f":"SUMIFS(Активи[Поточний рік],Активи[Тип активу],Приладна_дошка[[#This Row],[Тип активу]])+SUMIFS(Зобов_язання[Поточний рік],Зобов_язання[Тип зобов’язання],Приладна_дошка[[#This Row],[Тип активу]])","v":0}]
[null,"Поточні зобов’язання",{"$f":"SUMIFS(Активи[Попередній рік],Активи[Тип активу],Приладна_дошка[[#This Row],[Тип активу]])+SUMIFS(Зобов_язання[Попередній рік],Зобов_язання[Тип зобов’язання],Приладна_дошка[[#This Row],[Тип активу]])","v":500},{"$f":"SUMIFS(Активи[Поточний рік],Активи[Тип активу],Приладна_дошка[[#This Row],[Тип активу]])+SUMIFS(Зобов_язання[Поточний рік],Зобов_язання[Тип зобов’язання],Приладна_дошка[[#This Row],[Тип активу]])","v":350}]
[null,"Довгострокові зобов’язання",{"$f":"SUMIFS(Активи[Попередній рік],Активи[Тип активу],Приладна_дошка[[#This Row],[Тип активу]])+SUMIFS(Зобов_язання[Попередній рік],Зобов_язання[Тип зобов’язання],Приладна_дошка[[#This Row],[Тип активу]])","v":0},{"$f":"SUMIFS(Активи[Поточний рік],Активи[Тип активу],Приладна_дошка[[#This Row],[Тип активу]])+SUMIFS(Зобов_язання[Поточний рік],Зобов_язання[Тип зобов’язання],Приладна_дошка[[#This Row],[Тип активу]])","v":0}]
[null,"Власний капітал",{"$f":"SUMIFS(Активи[Попередній рік],Активи[Тип активу],Приладна_дошка[[#This Row],[Тип активу]])+SUMIFS(Зобов_язання[Попередній рік],Зобов_язання[Тип зобов’язання],Приладна_дошка[[#This Row],[Тип активу]])","v":0},{"$f":"SUMIFS(Активи[Поточний рік],Активи[Тип активу],Приладна_дошка[[#This Row],[Тип активу]])+SUMIFS(Зобов_язання[Поточний рік],Зобов_язання[Тип зобов’язання],Приладна_дошка[[#This Row],[Тип активу]])","v":350}]
[null,"Сукупні активи",{"$f":"Активи[[#Totals],[Попередній рік]]","v":500},{"$f":"Активи[[#Totals],[Поточний рік]]","v":515}]
[null,"Сукупні зобов’язання й акціонерний капітал",{"$f":"Зобов_язання[[#Totals],[Попередній рік]]","v":500},{"$f":"Зобов_язання[[#Totals],[Поточний рік]]","v":700}]
[null,"Баланс",{"$f":"C10-C11","v":0},{"$f":"D10-D11","v":{"v":-185,"d":"-185 "}}]

{"sheet":"Активи","index":1,"n_rows":14,"n_cols":5,"rows_kept":14}
[null,"Активи"]
[{"$nulls":3},{"$f":"ФІН_РІК","v":"ФР-2016"},{"$f":"ФІН_РІК_2","v":"ФР-2017"}]
[null,"Тип активу","Опис","Попередній рік","Поточний рік"]
[null,"Поточні активи","Грошові кошти",600,600]
[null,"Поточні активи","Інвестиції"]
[null,"Поточні активи","Товарно-матеріальні запаси"]
[null,"Поточні активи","Дебіторська заборгованість"]
[null,"Поточні активи","Передоплачені витрати"]
[null,"Основні активи","Майно й обладнання"]
[null,"Основні активи","Поліпшення орендованої нерухомості"]
[null,"Основні активи","Інвестиції в акції та інші"]
[null,"Основні активи","Зменшення накопиченої амортизації (від’ємне значення)",{"v":-100,"d":"-100 "},{"v":-85,"d":"-85 "}]
[null,"Інші активи","Благодійність"]
[null,"Сукупні активи",null,{"$f":"SUBTOTAL(109,Активи[Попередній рік])","v":500},{"$f":"SUBTOTAL(109,Активи[Поточний рік])","v":515}]

{"sheet":"Зобов язання","index":2,"n_rows":12,"n_cols":5,"rows_kept":12}
[null,"Зобов язання"]
[{"$nulls":3},{"$f":"ФІН_РІК","v":"ФР-2016"},{"$f":"ФІН_РІК_2","v":"ФР-2017"}]
[null,"Тип зобов’язання","Опис","Попередній рік","Поточний рік"]
[null,"Поточні зобов’язання","Кредиторська заборгованість",null,350]
[null,"Поточні зобов’язання","Нарахована заробітна плата"]
[null,"Поточні зобов’язання","Нараховане відшкодування",500]
[null,"Поточні зобов’язання","Податок на прибуток до сплати"]
[null,"Поточні зобов’язання","Нетрудовий прибуток"]
[null,"Довгострокові зобов’язання","Іпотечна кредиторська заборгованість"]
[null,"Власний капітал","Інвестиційний капітал",null,350]
[null,"Власний капітал","Накопичений нерозподілений прибуток"]
[null,"Сукупні зобов’язання й акціонерний капітал",null,{"$f":"SUBTOTAL(109,Зобов_язання[Попередній рік])","v":500},{"$f":"SUBTOTAL(109,Зобов_язання[Поточний рік])","v":700}]

{"sheet":"Категорії","index":3,"n_rows":9,"n_cols":2,"rows_kept":9}
[null,"Категорії"]
[]
[null,"Категорії"]
[null,"Поточні активи"]
[null,"Основні активи"]
[null,"Інші активи"]
[null,"Поточні зобов’язання"]
[null,"Довгострокові зобов’язання"]
[null,"Власний капітал"]